lending/lending_fUSD_20250122
["ID","MTS","AMOUNT","RATE_DAILY","PERIOD"]
[350028546,1737579042464,-500.0,0.00021307,2]
[350028548,1737579042473,-538.33,0.00021307,2]
[350028549,1737579042482,-500.0,0.00021307,2]
[350028550,1737579042491,-500.0,0.00021307,2]
[350028551,1737579042501,-102.40393923,0.00021307,2]
[350028552,1737579042512,-397.59606077,0.00021307,2]
[350028553,1737579042522,-626.07,0.00021307,2]
[350028554,1737579042531,-470.33574641,0.00021307,2]
[350028555,1737579042546,-29.66425359,0.00021307,2]
[350028556,1737579042556,-500.0,0.00021307,2]
[350028557,1737579042566,-500.0,0.00021307,2]
[350028558,1737579042575,-678.65,0.00021307,2]
[350028559,1737579042584,-500.0,0.00021307,2]
[350028560,1737579042593,-500.0,0.00021307,2]
[350028561,1737579042603,-500.0,0.00021307,2]
[350028562,1737579042612,-748.44,0.00021307,2]
[350028563,1737579042621,-500.0,0.00021307,2]
[350028564,1737579042630,-3096.06,0.00021307,2]
[350028565,1737579042639,-500.0,0.00021307,2]
[350028566,1737579042648,-500.0,0.00021308,2]
[350028567,1737579042658,-500.0,0.00021308,2]
[350028568,1737579042667,-500.0,0.00021308,2]
[350028569,1737579042677,-500.0,0.00021308,2]
[350028570,1737579042686,-500.0,0.00021308,2]
[350028571,1737579042695,-500.0,0.00021308,2]
[350028572,1737579042704,-500.0,0.00021308,2]
[350028573,1737579042713,-500.0,0.00021308,2]
[350028574,1737579042722,-35.88614498,0.00021308,2]
[350028575,1737579042748,-569.20131608,0.00021308,2]
[350028576,1737579042757,-500.0,0.00021308,2]
[350028577,1737579042767,-500.0,0.00021308,2]
[350028578,1737579042777,-436.80466392,0.00021308,2]
[350028581,1737579042941,-63.19533608,0.00021308,2]
[350028582,1737579042951,-501.79615603,0.00021308,2]
[350028583,1737579042962,-500.0,0.00021308,2]
[350028584,1737579042971,-500.0,0.00021308,2]
[350028585,1737579042980,-500.0,0.00021308,2]
[350028586,1737579042989,-500.0,0.00021308,2]
[350028587,1737579042998,-500.0,0.00021308,2]
[350028588,1737579043007,-4292.01319196,0.00021309,4]
[350028589,1737579043016,-500.0,0.00021311,2]
[350028590,1737579043025,-1847.0,0.0002134,2]
[350028591,1737579043034,-2411.94114893,0.00021345,2]
[350028593,1737579043165,-2149.52758628,0.00020361,2]
[350028594,1737579043180,-1440.61250502,0.00020361,2]
[350028595,1737579043189,-1185.44192334,0.00021345,2]
[350028596,1737579043198,-2056.06066518,0.00021345,2]
[350028597,1737579043207,-1579.65,0.00021383,2]
[350028598,1737579043216,-505.13445066,0.00021399,2]
[350028599,1737579043225,-851.96,0.000214,2]
[350028600,1737579043234,-241.06208387,0.000214,2]
[350028601,1737579043243,-44065.07837192,0.000214,3]
[350028602,1737579043254,-1179.325,0.000214,3]
[350028603,1737579043273,-673.25,0.000214,3]
[350028604,1737579043287,-817.817,0.000214,3]
[350028605,1737579043368,-18302.7391582,0.000214,3]
[350028606,1737579043379,-4496.38296764,0.000214,3]
[350028607,1737579043390,-450.07,0.000214,3]
[350028608,1737579043740,-2079.96803066,0.000214,3]
[350028609,1737579043755,-405.79639681,0.000214,3]
[350028610,1737579043766,-5973.61610571,0.000214,3]
[350028611,1737579043778,-5749.88131822,0.000214,3]
[350028612,1737579043789,-4656.14564984,0.000214,3]
[350028613,1737579043798,-251.74,0.00021417,2]
[350028614,1737579043809,-248.31,0.00021417,2]
[350028615,1737579043819,-3597.38307227,0.00021424,2]
[350028616,1737579043828,-2056.06066518,0.00021425,2]
[350028617,1737579043837,-150.0,0.00021433,2]
[350028618,1737579043846,-241.06208381,0.00021483,2]
[350028619,1737579043855,-219.95376553,0.0002149,2]
[350028620,1737579043864,-747.5,0.00021499,2]
[350028621,1737579043873,-830.66,0.00021499,2]
[350028622,1737579043884,-785.09,0.00021499,2]
[350028623,1737579043893,-1489.64,0.00021499,2]
[350028624,1737579043902,-500.0,0.00021499,2]
[350028625,1737579043911,-642.25,0.00021499,2]
[350028626,1737579043920,-836.16,0.00021499,2]
[350028627,1737579043930,-1035.85,0.00021499,2]
[350028628,1737579043938,-500.0,0.00021499,2]
[350028629,1737579043948,-1000.0,0.00021499,2]
[350028630,1737579043957,-906.4,0.00021499,2]
[350028631,1737579043966,-500.0,0.00021499,2]
[350028632,1737579043975,-1329.87,0.00021499,2]
[350028633,1737579043984,-1478.47,0.00021499,2]
[350028634,1737579043993,-77652.18459104,0.000215,2]
[350028635,1737579044004,-12674.517128,0.000215,2]
[350028643,1737579045438,-1543.63,0.00021286,2]
[350028645,1737579045448,-1315.87550588,0.000215,2]
[350028650,1737579045494,-500.0,0.00021286,2]
[350028651,1737579045503,-11258.97551333,0.000215,2]
[350028652,1737579045515,-1626.04323,0.000215,2]
[350028653,1737579045526,-258.82189644,0.000215,2]
[350028654,1737579045716,-29077.80950606,0.000215,2]
[350028655,1737579045726,-23072.19049394,0.000215,15]
[350028674,1737579395570,107412.36049676,0.0002,60]
[350028675,1737579468415,174.13,0.00010137,2]
[350028677,1737579878529,150.0,0.0001201,2]
[350028684,1737579907254,201.25444365,0.0001195,2]
[350028710,1737580231795,-550.0,0.00015,2]
[350028711,1737580231804,-168.26,0.00015659,2]
[350028712,1737580231814,-164.22,0.00016212,2]
[350028713,1737580231824,-731.14062322,0.00016512,2]
[350028714,1737580231835,-2086.0,0.000166,2]
[350028715,1737580231844,-5401.57628233,0.000166,2]
[350028716,1737580231855,-167.07,0.00016712,2]
[350028717,1737580231865,-600.0,0.00017,2]
[350028718,1737580231874,-1292.8,0.00018082,2]
[350028719,1737580231883,-503.0,0.00018137,2]
[350028720,1737580231893,-500.0,0.00018548,2]
[350028721,1737580231902,-650.0,0.00019,2]
[350028722,1737580231911,-2108.36,0.00019293,2]
[350028723,1737580231921,-1158.14,0.00019494,2]
[350028724,1737580231931,-250.0,0.00019574,2]
[350028725,1737580231940,-174.93,0.00019704,2]
[350028726,1737580231949,-1500.0,0.00019761,2]
[350028727,1737580231959,-424.6865,0.000199,2]
[350028728,1737580231968,-150.0,0.00020036,2]
[350028729,1737580231977,-1629.72,0.00020085,2]
[350028730,1737580231987,-250.0,0.0002013,2]
[350028731,1737580231996,-1893.61,0.0002013,2]
[350028732,1737580232006,-250.0,0.00020141,2]
[350028733,1737580232017,-1100.0,0.00020144,2]
[350028734,1737580232027,-810.39,0.00020145,2]
[350028735,1737580232036,-150.99,0.00020145,2]
[350028736,1737580232045,-113564.61,0.00020145,2]
[350028737,1737580232054,-2308.13,0.00020145,2]
[350028738,1737580232063,-172.94,0.00020325,2]
[350028739,1737580232073,-1292.8,0.00020346,2]
[350028740,1737580232082,-1000.0,0.0002036,2]
[350028741,1737580232092,-1267.57,0.00020385,2]
[350028742,1737580232101,-176.67,0.00020396,2]
[350028743,1737580232110,-1000.0,0.00020434,2]
[350028744,1737580232120,-23900.0,0.00020435,2]
[350028745,1737580232129,-150.0,0.00020492,2]
[350028746,1737580232138,-248.85817126,0.0002074,2]
[350028747,1737580232147,-30373.0,0.00020866,2]
[350028748,1737580232157,-700.0,0.00021,2]
[350028749,1737580232167,-174.93,0.00021018,2]
[350028750,1737580232176,-1601.77,0.00021041,2]
[350028751,1737580232185,-6345.1231,0.00021054,2]
[350028752,1737580232194,-855.0,0.00021131,2]
[350028753,1737580232203,-437.79,0.00021178,2]
[350028754,1737580232212,-150.0,0.00021178,2]
[350028755,1737580232222,-150.0,0.00021178,2]
[350028756,1737580232231,-304.94,0.00021178,2]
[350028757,1737580232241,-299.35,0.00021178,2]
[350028758,1737580232250,-150.0,0.00021178,2]
[350028759,1737580232263,-150.0,0.00021178,2]
[350028760,1737580232272,-437.79,0.00021178,2]
[350028761,1737580232281,-150.0,0.00021178,2]
[350028762,1737580232289,-437.79,0.00021178,2]
[350028763,1737580232299,-150.0,0.00021178,2]
[350028764,1737580232308,-150.0,0.00021178,2]
[350028765,1737580232317,-150.0,0.00021178,2]
[350028766,1737580232326,-437.79,0.00021178,2]
[350028767,1737580232335,-150.0,0.00021178,2]
[350028768,1737580232344,-150.0,0.00021178,2]
[350028769,1737580232354,-150.0,0.00021178,2]
[350028770,1737580232363,-437.79,0.00021178,2]
[350028771,1737580232372,-150.0,0.00021178,2]
[350028772,1737580232381,-150.0,0.00021178,2]
[350028773,1737580232391,-437.79,0.00021178,2]
[350028774,1737580232400,-441.95,0.00021178,2]
[350028775,1737580232409,-297.15,0.00021178,2]
[350028776,1737580232419,-150.0,0.00021178,2]
[350028777,1737580232428,-302.33,0.00021178,2]
[350028778,1737580232437,-437.79,0.00021178,2]
[350028779,1737580232446,-151.16,0.00021178,2]
[350028780,1737580232455,-437.79,0.00021178,2]
[350028781,1737580232465,-303.93,0.00021178,2]
[350028782,1737580232474,-500.0,0.00021184,2]
[350028783,1737580232484,-500.0,0.00021184,2]
[350028784,1737580232494,-500.0,0.00021184,2]
[350028785,1737580232503,-500.0,0.00021184,2]
[350028786,1737580232515,-5000.0,0.00021185,2]
[350028787,1737580232524,-9159.69014888,0.00021185,2]
[350028788,1737580232533,-1218.876,0.00021186,2]
[350028789,1737580232542,-460.9844,0.00021186,2]
[350028790,1737580232551,-16125.1716,0.00021186,2]
[350028791,1737580232560,-1000.0,0.00021216,2]
[350028792,1737580232569,-9159.69014886,0.00021264,2]
[350028793,1737580232578,-822.84,0.00021283,2]
[350028794,1737580232587,-500.0,0.00021283,2]
[350028795,1737580232597,-515.69,0.00021283,2]
[350028796,1737580232606,-1388.06,0.00021283,2]
[350028797,1737580232615,-500.0,0.00021283,2]
[350028798,1737580232625,-1178.94,0.00021283,2]
[350028799,1737580232635,-1677.82,0.00021283,2]
[350028800,1737580232645,-941.14,0.00021283,2]
[350028801,1737580232654,-1193.01,0.00021283,2]
[350028802,1737580232664,-500.0,0.00021283,2]
[350028803,1737580232674,-500.0,0.00021283,2]
[350028804,1737580232684,-529.12,0.00021283,2]
[350028805,1737580232695,-510.78,0.00021283,2]
[350028806,1737580232705,-1236.13,0.00021283,2]
[350028807,1737580232715,-1663.52,0.00021283,2]
[350028808,1737580232725,-589.1,0.00021283,2]
[350028809,1737580232734,-500.0,0.00021283,2]
[350028810,1737580232744,-500.0,0.00021283,2]
[350028811,1737580232756,-1980.97,0.00021283,2]
[350028812,1737580232766,-500.0,0.00021283,2]
[350028813,1737580232775,-500.0,0.00021283,2]
[350028814,1737580232785,-500.0,0.00021283,2]
[350028815,1737580232794,-500.0,0.00021283,2]
[350028816,1737580232803,-500.0,0.00021284,2]
[350028817,1737580232812,-500.0,0.00021284,2]
[350028818,1737580232822,-500.0,0.00021284,2]
[350028819,1737580232832,-500.0,0.00021284,2]
[350028820,1737580232841,-500.0,0.00021284,2]
[350028821,1737580232851,-607.0447303,0.00021284,2]
[350028822,1737580232860,-500.0,0.00021284,2]
[350028823,1737580232869,-500.0,0.00021284,2]
[350028824,1737580233073,-500.0,0.00021284,2]
[350028825,1737580233083,-500.0,0.00021284,2]
[350028826,1737580233093,-500.0,0.00021284,2]
[350028827,1737580233104,-500.0,0.00021284,2]
[350028828,1737580233114,-500.0,0.00021284,2]
[350028829,1737580233124,-500.0,0.00021284,2]
[350028830,1737580233134,-500.0,0.00021284,2]
[350028831,1737580233145,-500.0,0.00021284,2]
[350028832,1737580233155,-500.0,0.00021284,2]
[350028833,1737580233165,-500.0,0.00021284,2]
[350028834,1737580233175,-500.0,0.00021284,2]
[350028835,1737580233185,-620.03,0.00021284,2]
[350028836,1737580233195,-511.25862332,0.00021284,2]
[350028837,1737580233205,-500.0,0.00021284,2]
[350028838,1737580233215,-208.50715105,0.00021284,2]
[350028839,1737580233225,-500.0,0.00021284,2]
[350028840,1737580233235,-500.0,0.00021284,2]
[350028841,1737580233244,-500.0,0.00021284,2]
[350028842,1737580233254,-500.0,0.00021284,2]
[350028843,1737580233266,-520.22723867,0.00021284,2]
[350028844,1737580233275,-500.0,0.00021284,2]
[350028845,1737580233285,-500.0,0.00021284,2]
[350028846,1737580233294,-500.0,0.00021284,2]
[350028847,1737580233304,-500.0,0.00021284,2]
[350028848,1737580233313,-182.6907378,0.00021284,2]
[350028849,1737580233322,-500.0,0.00021284,2]
[350028850,1737580233332,-500.0,0.00021284,2]
[350028851,1737580233342,-500.0,0.00021284,2]
[350028852,1737580233352,-577.94458256,0.00021284,2]
[350028853,1737580233361,-438.17784157,0.00021284,2]
[350028854,1737580233371,-500.0,0.00021284,2]
[350028855,1737580233380,-500.0,0.00021284,2]
[350028856,1737580233389,-500.0,0.00021284,2]
[350028857,1737580233399,-500.0,0.00021284,2]
[350028858,1737580233408,-500.0,0.00021284,2]
[350028859,1737580233417,-500.0,0.00021284,2]
[350028860,1737580233427,-500.0,0.00021284,2]
[350028861,1737580233436,-500.0,0.00021284,2]
[350028862,1737580233446,-500.0,0.00021284,2]
[350028863,1737580233455,-500.0,0.00021284,2]
[350028864,1737580233465,-500.0,0.00021284,2]
[350028865,1737580233476,-500.0,0.00021284,2]
[350028866,1737580233485,-241.55888075,0.00021284,2]
[350028867,1737580233495,-500.0,0.00021284,2]
[350028868,1737580233504,-500.0,0.00021284,2]
[350028869,1737580233517,-500.0,0.00021284,2]
[350028870,1737580233526,-500.0,0.00021284,2]
[350028871,1737580233535,-500.0,0.00021284,2]
[350028872,1737580233545,-500.0,0.00021284,2]
[350028873,1737580233555,-635.02338562,0.00021284,2]
[350028874,1737580233565,-482.85358188,0.00021284,2]
[350028875,1737580233574,-200.0,0.00021284,2]
[350028876,1737580233584,-500.0,0.00021284,2]
[350028877,1737580233594,-500.0,0.00021284,2]
[350028878,1737580233603,-500.0,0.00021284,2]
[350028879,1737580233613,-500.0,0.00021284,2]
[350028880,1737580233622,-500.0,0.00021284,2]
[350028881,1737580233632,-500.0,0.00021284,2]
[350028882,1737580233641,-324.77245555,0.00021284,2]
[350028883,1737580233650,-500.0,0.00021284,2]
[350028884,1737580233659,-187.73121359,0.00021284,2]
[350028885,1737580233668,-500.0,0.00021284,2]
[350028886,1737580233678,-500.0,0.00021284,2]
[350028887,1737580233687,-500.0,0.00021284,2]
[350028888,1737580233696,-500.0,0.00021284,2]
[350028889,1737580233705,-500.0,0.00021284,2]
[350028890,1737580233715,-500.0,0.00021284,2]
[350028891,1737580233724,-500.0,0.00021284,2]
[350028892,1737580233734,-500.0,0.00021284,2]
[350028893,1737580233745,-211.9951241,0.00021284,2]
[350028894,1737580233756,-500.0,0.00021284,2]
[350028895,1737580233767,-500.0,0.00021284,2]
[350028896,1737580233776,-617.446951,0.00021284,2]
[350028897,1737580233786,-500.0,0.00021284,2]
[350028898,1737580233797,-500.0,0.00021284,2]
[350028899,1737580233807,-500.0,0.00021284,2]
[350028900,1737580233817,-500.0,0.00021284,2]
[350028901,1737580233829,-500.0,0.00021284,2]
[350028902,1737580233840,-500.0,0.00021284,2]
[350028903,1737580233849,-500.0,0.00021284,2]
[350028904,1737580233858,-500.0,0.00021284,2]
[350028905,1737580233869,-500.0,0.00021284,2]
[350028906,1737580233879,-474.373037,0.00021284,2]
[350028907,1737580233888,-500.0,0.00021284,2]
[350028908,1737580233898,-500.0,0.00021284,2]
[350028909,1737580233908,-500.0,0.00021284,2]
[350028910,1737580233919,-500.0,0.00021284,2]
[350028911,1737580233928,-500.0,0.00021284,2]
[350028912,1737580233938,-500.0,0.00021284,2]
[350028913,1737580233947,-566.16,0.00021284,2]
[350028914,1737580233956,-500.0,0.00021284,2]
[350028915,1737580233966,-500.0,0.00021284,2]
[350028916,1737580233976,-500.0,0.00021284,2]
[350028917,1737580233986,-515.37762454,0.00021284,2]
[350028918,1737580233996,-500.0,0.00021284,2]
[350028919,1737580234006,-500.0,0.00021284,2]
[350028920,1737580234018,-500.0,0.00021284,2]
[350028921,1737580234028,-500.0,0.00021284,2]
[350028922,1737580234039,-500.0,0.00021284,2]
[350028923,1737580234049,-500.0,0.00021284,2]
[350028924,1737580234059,-500.0,0.00021284,2]
[350028925,1737580234069,-500.0,0.00021284,2]
[350028926,1737580234079,-500.0,0.00021284,2]
[350028927,1737580234089,-245.89942434,0.00021284,2]
[350028928,1737580234099,-500.0,0.00021284,2]
[350028929,1737580234109,-500.0,0.00021284,2]
[350028930,1737580234119,-500.0,0.00021284,2]
[350028931,1737580234128,-500.0,0.00021284,2]
[350028932,1737580234138,-500.0,0.00021284,2]
[350028933,1737580234147,-500.0,0.00021284,2]
[350028934,1737580234157,-507.97936771,0.00021284,2]
[350028935,1737580234167,-500.0,0.00021284,2]
[350028936,1737580234176,-500.0,0.00021284,2]
[350028937,1737580234186,-500.0,0.00021284,2]
[350028938,1737580234195,-500.0,0.00021284,2]
[350028939,1737580234206,-507.47424146,0.00021284,2]
[350028940,1737580234216,-500.0,0.00021284,2]
[350028941,1737580234225,-500.0,0.00021284,2]
[350028942,1737580234235,-500.0,0.00021284,2]
[350028943,1737580234244,-500.0,0.00021284,2]
[350028944,1737580234254,-500.0,0.00021284,2]
[350028945,1737580234266,-564.36,0.00021284,2]
[350028946,1737580234276,-500.0,0.00021284,2]
[350028947,1737580234286,-500.0,0.00021284,2]
[350028948,1737580234296,-724.97,0.00021284,2]
[350028949,1737580234305,-500.0,0.00021284,2]
[350028950,1737580234315,-500.0,0.00021284,2]
[350028951,1737580234324,-500.0,0.00021284,2]
[350028952,1737580234334,-500.0,0.00021284,2]
[350028953,1737580234343,-500.0,0.00021284,2]
[350028954,1737580234353,-500.0,0.00021284,2]
[350028955,1737580234363,-509.70414068,0.00021284,2]
[350028956,1737580234372,-500.0,0.00021284,2]
[350028957,1737580234382,-1247.85,0.00021284,2]
[350028958,1737580234392,-434.46798295,0.00021284,2]
[350028959,1737580234402,-500.0,0.00021284,2]
[350028960,1737580234412,-500.0,0.00021284,2]
[350028961,1737580234421,-500.0,0.00021284,2]
[350028962,1737580234431,-500.0,0.00021284,2]
[350028963,1737580234441,-806.19,0.00021284,2]
[350028964,1737580234450,-2390.94,0.00021284,2]
[350028965,1737580234459,-500.0,0.00021284,2]
[350028966,1737580234468,-500.0,0.00021284,2]
[350028967,1737580234478,-500.0,0.00021284,2]
[350028968,1737580234487,-500.0,0.00021284,2]
[350028969,1737580234496,-1745.48,0.00021284,2]
[350028970,1737580234505,-500.0,0.00021284,2]
[350028971,1737580234516,-500.0,0.00021284,2]
[350028972,1737580234525,-500.0,0.00021284,2]
[350028973,1737580234534,-327.80854993,0.00021284,2]
[350028974,1737580234544,-500.0,0.00021284,2]
[350028975,1737580234553,-692.18,0.00021284,2]
[350028976,1737580234562,-500.0,0.00021284,2]
[350028977,1737580234571,-927.76,0.00021284,2]
[350028978,1737580234580,-505.37895415,0.00021284,2]
[350028979,1737580234589,-500.0,0.00021284,2]
[350028980,1737580234598,-500.0,0.00021284,2]
[350028981,1737580234607,-500.0,0.00021284,2]
[350028982,1737580234616,-500.0,0.00021284,2]
[350028983,1737580234625,-1445.23,0.00021284,2]
[350028984,1737580234634,-500.0,0.00021284,2]
[350028985,1737580234643,-500.0,0.00021284,2]
[350028986,1737580234652,-500.0,0.00021284,2]
[350028987,1737580234661,-500.0,0.00021284,2]
[350028988,1737580234670,-500.0,0.00021284,2]
[350028989,1737580234679,-559.71,0.00021284,2]
[350028990,1737580234688,-728.62,0.00021284,2]
[350028991,1737580234697,-500.0,0.00021284,2]
[350028992,1737580234706,-500.0,0.00021284,2]
[350028993,1737580234715,-500.0,0.00021284,2]
[350028994,1737580234724,-500.0,0.00021284,2]
[350028995,1737580234734,-1123.47,0.00021284,2]
[350028996,1737580234743,-3270.68,0.00021284,2]
[350028997,1737580234755,-1566.09,0.00021284,2]
[350028998,1737580234766,-500.0,0.00021284,2]
[350028999,1737580234776,-505.78132252,0.00021284,2]
[350029000,1737580234784,-1669.3,0.00021284,2]
[350029001,1737580234795,-169.14021046,0.00021284,2]
[350029002,1737580234803,-500.0,0.00021284,2]
[350029003,1737580234813,-500.0,0.00021284,2]
[350029004,1737580234822,-500.0,0.00021284,2]
[350029005,1737580234832,-500.0,0.00021284,2]
[350029006,1737580234841,-1223.24,0.00021284,2]
[350029007,1737580234850,-500.0,0.00021284,2]
[350029008,1737580234859,-549.75,0.00021284,2]
[350029009,1737580234869,-1200.49,0.00021284,2]
[350029010,1737580234879,-354.86,0.00021284,2]
[350029011,1737580234888,-770.41,0.00021284,2]
[350029012,1737580234897,-500.0,0.00021284,2]
[350029013,1737580234907,-500.0,0.00021284,2]
[350029014,1737580234916,-500.0,0.00021284,2]
[350029015,1737580234925,-500.0,0.00021284,2]
[350029016,1737580234935,-571.62,0.00021284,2]
[350029017,1737580234944,-500.0,0.00021284,2]
[350029018,1737580234953,-2305.69,0.00021284,2]
[350029019,1737580234962,-2631.8,0.00021284,2]
[350029020,1737580234971,-2438.02,0.00021284,2]
[350029021,1737580234981,-500.0,0.00021284,2]
[350029022,1737580234990,-500.0,0.00021284,2]
[350029023,1737580234999,-500.0,0.00021284,2]
[350029024,1737580235009,-500.0,0.00021284,2]
[350029025,1737580235019,-500.0,0.00021284,2]
[350029026,1737580235028,-962.55,0.00021284,2]
[350029027,1737580235038,-500.0,0.00021284,2]
[350029028,1737580235047,-500.0,0.00021284,2]
[350029029,1737580235056,-500.0,0.00021284,2]
[350029030,1737580235065,-1505.25,0.00021284,2]
[350029031,1737580235075,-500.0,0.00021284,2]
[350029032,1737580235083,-825.5,0.00021284,2]
[350029033,1737580235092,-1329.06,0.00021284,2]
[350029034,1737580235101,-500.0,0.00021284,2]
[350029035,1737580235111,-1033.18,0.00021284,2]
[350029036,1737580235121,-500.0,0.00021284,2]
[350029037,1737580235130,-500.0,0.00021284,2]
[350029038,1737580235139,-908.55,0.00021284,2]
[350029039,1737580235149,-500.0,0.00021284,2]
[350029040,1737580235158,-2036.69,0.00021284,2]
[350029041,1737580235167,-500.0,0.00021284,2]
[350029042,1737580235177,-807.85,0.00021284,2]
[350029043,1737580235186,-500.0,0.00021284,2]
[350029044,1737580235195,-667.22,0.00021284,2]
[350029045,1737580235204,-500.0,0.00021284,2]
[350029046,1737580235213,-500.0,0.00021284,2]
[350029047,1737580235222,-500.0,0.00021284,2]
[350029048,1737580235231,-2110.31,0.00021284,2]
[350029049,1737580235241,-500.0,0.00021284,2]
[350029050,1737580235250,-500.0,0.00021284,2]
[350029051,1737580235260,-500.0,0.00021284,2]
[350029052,1737580235269,-500.0,0.00021284,2]
[350029053,1737580235278,-1115.13,0.00021284,2]
[350029054,1737580235288,-408.16933293,0.00021284,2]
[350029055,1737580235297,-500.0,0.00021284,2]
[350029056,1737580235306,-500.0,0.00021284,2]
[350029057,1737580235315,-500.0,0.00021284,2]
[350029058,1737580235324,-1708.66,0.00021284,2]
[350029059,1737580235333,-500.0,0.00021284,2]
[350029060,1737580235343,-500.0,0.00021284,2]
[350029061,1737580235352,-823.52,0.00021284,2]
[350029062,1737580235362,-500.0,0.00021284,2]
[350029063,1737580235370,-812.69,0.00021284,2]
[350029064,1737580235380,-673.06,0.00021284,2]
[350029065,1737580235389,-500.0,0.00021284,2]
[350029066,1737580235398,-507.66154877,0.00021284,2]
[350029067,1737580235407,-500.0,0.00021284,2]
[350029068,1737580235416,-677.17,0.00021284,2]
[350029069,1737580235425,-500.0,0.00021284,2]
[350029070,1737580235435,-2314.25,0.00021284,2]
[350029071,1737580235444,-500.0,0.00021284,2]
[350029072,1737580235454,-1083.18,0.00021284,2]
[350029073,1737580235463,-500.0,0.00021284,2]
[350029074,1737580235473,-500.0,0.00021284,2]
[350029075,1737580235482,-500.0,0.00021284,2]
[350029076,1737580235491,-500.0,0.00021284,2]
[350029077,1737580235500,-500.0,0.00021284,2]
[350029078,1737580235510,-500.0,0.00021284,2]
[350029079,1737580235520,-500.0,0.00021284,2]
[350029080,1737580235529,-500.0,0.00021284,2]
[350029081,1737580235538,-500.0,0.00021284,2]
[350029082,1737580235547,-500.0,0.00021284,2]
[350029083,1737580235557,-500.0,0.00021284,2]
[350029084,1737580235566,-500.0,0.00021284,2]
[350029085,1737580235575,-500.0,0.00021284,2]
[350029086,1737580235584,-526.47,0.00021284,2]
[350029087,1737580235593,-500.0,0.00021284,2]
[350029088,1737580235602,-500.0,0.00021284,2]
[350029089,1737580235612,-500.0,0.00021284,2]
[350029090,1737580235621,-500.0,0.00021284,2]
[350029091,1737580235630,-500.0,0.00021284,2]
[350029092,1737580235639,-500.0,0.00021284,2]
[350029093,1737580235648,-500.0,0.00021284,2]
[350029094,1737580235657,-500.0,0.00021284,2]
[350029095,1737580235666,-263.90560579,0.00021284,2]
[350029096,1737580235675,-500.0,0.00021284,2]
[350029097,1737580235685,-500.0,0.00021284,2]
[350029098,1737580235694,-500.0,0.00021284,2]
[350029099,1737580235703,-1090.85,0.00021284,2]
[350029100,1737580235712,-500.0,0.00021285,2]
[350029101,1737580235721,-500.0,0.00021285,2]
[350029102,1737580235730,-500.0,0.00021285,2]
[350029103,1737580235740,-500.0,0.00021285,2]
[350029104,1737580235754,-500.0,0.00021285,2]
[350029105,1737580235765,-500.0,0.00021285,2]
[350029106,1737580235774,-500.0,0.00021285,2]
[350029107,1737580235783,-500.0,0.00021285,2]
[350029108,1737580235794,-500.0,0.00021285,2]
[350029109,1737580235803,-500.0,0.00021285,2]
[350029110,1737580235812,-500.0,0.00021285,2]
[350029111,1737580235821,-500.0,0.00021285,2]